fUSD/lending_fUSD_20250519
["ID","MTS","AMOUNT","RATE_DAILY","PERIOD"]
[361573349,1747620641569,-406.38320565,0.00013698,2]
[361573350,1747620641578,-500.0,0.00013698,2]
[361573351,1747620641587,-400.0,0.00013698,2]
[361573352,1747620641596,-400.0,0.00013698,2]
[361573353,1747620641606,-793.14,0.00013698,2]
[361573354,1747620641616,-503.03,0.00013698,2]
[361573355,1747620641625,-848.31,0.00013698,2]
[361573356,1747620641634,-232.39858299,0.00013698,2]
[361573357,1747620641644,-401.69685702,0.00013698,2]
[361573358,1747620641654,-407.27291113,0.00013698,2]
[361573359,1747620641663,-400.0,0.00013698,2]
[361573360,1747620641672,-573.21,0.00013698,2]
[361573361,1747620641681,-401.85186272,0.00013698,2]
[361573362,1747620641691,-400.0,0.00013698,2]
[361573363,1747620641700,-400.0,0.00013698,2]
[361573364,1747620641709,-403.67486932,0.00013698,2]
[361573365,1747620641719,-405.28163923,0.00013698,2]
[361573366,1747620641728,-400.0,0.00013698,2]
[361573367,1747620641737,-400.0,0.00013698,2]
[361573368,1747620641746,-1153.47,0.00013698,2]
[361573369,1747620641756,-400.0,0.00013698,2]
[361573370,1747620641765,-400.0,0.00013698,2]
[361573371,1747620641775,-400.0,0.00013698,2]
[361573372,1747620641784,-400.0,0.00013698,2]
[361573373,1747620641794,-400.0,0.00013698,2]
[361573374,1747620641803,-536.76,0.00013698,2]
[361573375,1747620641813,-556.21,0.00013698,2]
[361573376,1747620641822,-402.07962677,0.00013698,2]
[361573377,1747620641832,-1384.34,0.00013698,2]
[361573378,1747620641842,-400.0,0.00013698,2]
[361573379,1747620641851,-1413.75,0.00013698,2]
[361573380,1747620641860,-410.16319536,0.00013698,2]
[361573381,1747620641870,-405.66761919,0.00013698,2]
[361573382,1747620641879,-400.0,0.00013698,2]
[361573383,1747620641888,-543.62,0.00013698,2]
[361573384,1747620641897,-400.0,0.00013698,2]
[361573385,1747620641907,-400.0,0.00013698,2]
[361573386,1747620641915,-717.48,0.00013698,2]
[361573387,1747620641924,-649.3,0.00013698,2]
[361573388,1747620641933,-1079.28,0.00013698,2]
[361573389,1747620641943,-570.62,0.00013698,2]
[361573390,1747620641953,-452.97,0.00013698,2]
[361573391,1747620641962,-400.0,0.00013698,2]
[361573392,1747620641971,-400.0,0.00013698,2]
[361573393,1747620641981,-400.0,0.00013698,2]
[361573394,1747620641990,-1078.98,0.00013698,2]
[361573395,1747620642000,-400.0,0.00013698,2]
[361573396,1747620642009,-565.75,0.00013698,2]
[361573397,1747620642019,-400.32099934,0.00013698,2]
[361573398,1747620642028,-1162.76,0.00013698,2]
[361573399,1747620642037,-400.0,0.00013698,2]
[361573400,1747620642047,-256.42984221,0.00013698,2]
[361573401,1747620642056,-400.0,0.00013698,2]
[361573402,1747620642066,-403.62497865,0.00013698,2]
[361573403,1747620642075,-400.0,0.00013698,2]
[361573404,1747620642084,-312.48,0.00013698,2]
[361573405,1747620642094,-400.0,0.00013698,2]
[361573406,1747620642103,-400.0,0.00013698,2]
[361573407,1747620642112,-245.30588582,0.00013698,2]
[361573408,1747620642122,-518.79,0.00013698,2]
[361573409,1747620642131,-400.0,0.00013698,2]
[361573410,1747620642140,-400.0,0.00013698,2]
[361573411,1747620642149,-400.0,0.00013698,2]
[361573412,1747620642158,-400.0,0.00013698,2]
[361573413,1747620642167,-400.0,0.00013698,2]
[361573414,1747620642176,-150.0,0.00013698,2]
[361573415,1747620642185,-400.0,0.00013698,2]
[361573416,1747620642195,-403.00411982,0.00013698,2]
[361573417,1747620642206,-662.1,0.00013698,2]
[361573418,1747620642215,-400.0,0.00013698,2]
[361573419,1747620642225,-400.0,0.00013698,2]
[361573420,1747620642234,-400.0,0.00013698,2]
[361573421,1747620642244,-416.02,0.00013698,2]
[361573422,1747620642254,-507.97,0.00013698,2]
[361573423,1747620642263,-457.33832909,0.00013698,2]
[361573424,1747620642273,-405.57037525,0.00013698,2]
[361573425,1747620642283,-799.51,0.00013698,2]
[361573426,1747620642291,-400.0,0.00013698,2]
[361573427,1747620642301,-400.0,0.00013698,2]
[361573428,1747620642310,-400.0,0.00013698,2]
[361573429,1747620642320,-1010.08,0.00013698,2]
[361573430,1747620642329,-400.0,0.00013698,2]
[361573431,1747620642338,-400.0,0.00013698,2]
[361573432,1747620642347,-658.57,0.00013698,2]
[361573433,1747620642357,-528.59,0.00013698,2]
[361573434,1747620642366,-400.0,0.00013698,2]
[361573435,1747620642375,-400.83611807,0.00013698,2]
[361573436,1747620642385,-400.0,0.00013698,2]
[361573437,1747620642395,-400.0,0.00013698,2]
[361573438,1747620642404,-507.56,0.00013698,2]
[361573439,1747620642413,-400.0,0.00013698,2]
[361573440,1747620642423,-400.0,0.00013698,2]
[361573441,1747620642432,-1276.41,0.00013698,2]
[361573442,1747620642442,-403.10879408,0.00013698,2]
[361573444,1747620642451,-400.0,0.00013698,2]
[361573446,1747620642460,-400.0,0.00013698,2]
[361573448,1747620642469,-447.07,0.00013698,2]
[361573450,1747620642478,-445.11,0.00013698,2]
[361573453,1747620642487,-400.0,0.00013698,2]
[361573454,1747620642497,-529.83,0.00013698,2]
[361573456,1747620642506,-400.0,0.00013698,2]
[361573458,1747620642515,-398.04998816,0.00013698,2]
[361573460,1747620642524,-400.0,0.00013698,2]
[361573463,1747620642534,-400.0,0.00013698,2]
[361573466,1747620642543,-400.0,0.00013698,2]
[361573468,1747620642553,-400.0,0.00013698,2]
[361573470,1747620642563,-400.0,0.00013698,2]
[361573472,1747620642572,-855.9,0.00013698,2]
[361573474,1747620642582,-400.0,0.00013698,2]
[361573477,1747620642591,-400.0,0.00013698,2]
[361573479,1747620642601,-400.0,0.00013698,2]
[361573481,1747620642610,-413.79,0.00013698,2]
[361573483,1747620642619,-400.0,0.00013698,2]
[361573485,1747620642628,-710.58,0.00013698,2]
[361573486,1747620642638,-441.26,0.00013698,2]
[361573487,1747620642648,-400.0,0.00013698,2]
[361573488,1747620642657,-400.0,0.00013698,2]
[361573489,1747620642666,-400.0,0.00013698,2]
[361573490,1747620642675,-802.95,0.00013698,2]
[361573491,1747620642684,-400.0,0.00013698,2]
[361573492,1747620642694,-400.0,0.00013698,2]
[361573493,1747620642704,-400.0,0.00013698,2]
[361573494,1747620642713,-400.0,0.00013698,2]
[361573495,1747620642723,-400.0,0.00013698,2]
[361573496,1747620642732,-400.0,0.00013698,2]
[361573497,1747620642741,-400.0,0.00013698,2]
[361573498,1747620642750,-400.0,0.00013698,2]
[361573499,1747620642759,-400.0,0.00013698,2]
[361573500,1747620642768,-1351.59,0.00013698,2]
[361573501,1747620642778,-400.0,0.00013698,2]
[361573502,1747620642788,-608.52,0.00013698,2]
[361573503,1747620642798,-400.0,0.00013698,2]
[361573504,1747620642807,-544.06,0.00013698,2]
[361573505,1747620642816,-459.29,0.00013698,2]
[361573506,1747620642826,-509.82,0.00013698,2]
[361573507,1747620642835,-400.0,0.00013698,2]
[361573508,1747620642844,-400.0,0.00013698,2]
[361573509,1747620642853,-400.0,0.00013698,2]
[361573510,1747620642862,-895.83,0.00013698,2]
[361573511,1747620642871,-400.0,0.00013698,2]
[361573512,1747620642885,-403.1141323,0.00013698,2]
[361573513,1747620642894,-403.82826015,0.00013698,2]
[361573514,1747620642903,-502.93,0.00013698,2]
[361573515,1747620642912,-609.77,0.00013698,2]
[361573516,1747620642921,-400.0,0.00013698,2]
[361573517,1747620642930,-400.0,0.00013698,2]
[361573518,1747620642939,-504.6777556,0.00013698,2]
[361573519,1747620642949,-400.0,0.00013698,2]
[361573520,1747620642958,-500.0,0.00013698,2]
[361573521,1747620642967,-400.0,0.00013698,2]
[361573522,1747620642976,-400.0,0.00013698,2]
[361573523,1747620642986,-412.02,0.00013698,2]
[361573525,1747620642995,-895.06,0.00013698,2]
[361573526,1747620643005,-400.0,0.00013698,2]
[361573527,1747620643014,-400.56829022,0.00013698,2]
[361573528,1747620643023,-400.0,0.00013698,2]
[361573529,1747620643033,-404.25588432,0.00013698,2]
[361573530,1747620643042,-400.0,0.00013698,2]
[361573531,1747620643052,-459.84,0.00013698,2]
[361573532,1747620643061,-400.0,0.00013698,2]
[361573533,1747620643070,-400.0,0.00013698,2]
[361573534,1747620643080,-401.10906499,0.00013698,2]
[361573535,1747620643090,-400.0,0.00013698,2]
[361573536,1747620643099,-460.26,0.00013698,2]
[361573537,1747620643109,-402.69239304,0.00013698,2]
[361573538,1747620643119,-400.0,0.00013698,2]
[361573539,1747620643128,-400.0,0.00013698,2]
[361573540,1747620643137,-400.0,0.00013698,2]
[361573541,1747620643147,-400.0,0.00013698,2]
[361573542,1747620643156,-400.0,0.00013698,2]
[361573543,1747620643166,-603.07,0.00013698,2]
[361573544,1747620643175,-366.50340508,0.00013698,2]
[361573545,1747620643186,-876.58,0.00013698,2]
[361573547,1747620643197,-689.83,0.00013698,2]
[361573549,1747620643208,-400.0,0.00013698,2]
[361573551,1747620643218,-400.0,0.00013698,2]
[361573553,1747620643227,-400.0,0.00013698,2]
[361573555,1747620643238,-404.94935577,0.00013698,2]
[361573556,1747620643248,-702.24,0.00013698,2]
[361573557,1747620643258,-1106.76857931,0.00013698,2]
[361573558,1747620643296,-132.85142069,0.00013698,2]
[361573559,1747620643305,-400.0,0.00013698,2]
[361573560,1747620643315,-1155.1,0.00013698,2]
[361573561,1747620643324,-519.48922481,0.00013698,2]
[361573562,1747620643333,-400.0,0.00013698,2]
[361573563,1747620643343,-625.29,0.00013698,2]
[361573564,1747620643352,-400.0,0.00013698,2]
[361573565,1747620643362,-408.31522509,0.00013698,2]
[361573566,1747620643371,-400.0,0.00013698,2]
[361573567,1747620643381,-400.9820123,0.00013698,2]
[361573568,1747620643390,-505.8,0.00013698,2]
[361573569,1747620643400,-400.0,0.00013698,2]
[361573570,1747620643409,-400.0,0.00013698,2]
[361573571,1747620643419,-400.0,0.00013698,2]
[361573572,1747620643428,-505.8,0.00013698,2]
[361573573,1747620643438,-400.0,0.00013698,2]
[361573574,1747620643447,-400.0,0.00013698,2]
[361573575,1747620643457,-422.09,0.00013698,2]
[361573576,1747620643467,-404.68191972,0.00013698,2]
[361573577,1747620643476,-400.0,0.00013698,2]
[361573578,1747620643486,-572.76,0.00013698,2]
[361573579,1747620643496,-400.0,0.00013698,2]
[361573580,1747620643505,-200.0,0.00013698,2]
[361573581,1747620643515,-272.08418421,0.00013698,2]
[361573582,1747620643525,-478.15,0.00013698,2]
[361573583,1747620643536,-400.0,0.00013698,2]
[361573584,1747620643546,-400.0,0.00013698,2]
[361573585,1747620643555,-734.3,0.00013698,2]
[361573586,1747620643566,-400.0,0.00013698,2]
[361573587,1747620643575,-400.0,0.00013698,2]
[361573588,1747620643585,-400.0,0.00013698,2]
[361573589,1747620643596,-189.482943,0.00013698,2]
[361573590,1747620643605,-400.0,0.00013698,2]
[361573591,1747620643615,-1232.66,0.00013698,2]
[361573592,1747620643624,-400.0,0.00013698,2]
[361573593,1747620643634,-157.824674,0.00013698,2]
[361573594,1747620643644,-647.3,0.00013698,2]
[361573595,1747620643654,-400.0,0.00013698,2]
[361573596,1747620643663,-400.0,0.00013698,2]
[361573597,1747620643673,-400.0,0.00013698,2]
[361573598,1747620643682,-617.52,0.00013698,2]
[361573599,1747620643692,-433.81,0.00013698,2]
[361573600,1747620643702,-400.0,0.00013698,2]
[361573601,1747620643711,-502.8,0.00013698,2]
[361573602,1747620643721,-400.0,0.00013698,2]
[361573603,1747620643730,-485.75,0.00013698,2]
[361573604,1747620643740,-400.0,0.00013698,2]
[361573605,1747620643749,-403.30878501,0.00013698,2]
[361573606,1747620643759,-60.84961117,0.00013698,2]
[361573607,1747620643789,-339.15038883,0.00013698,2]
[361573608,1747620643798,-324.73298943,0.00013698,2]
[361573609,1747620643818,-902.75701057,0.00013698,2]
[361573610,1747620643827,-400.0,0.00013698,2]
[361573611,1747620643837,-400.0,0.00013698,2]
[361573612,1747620643847,-215.44406359,0.00013698,2]
[361573613,1747620643859,-184.55593641,0.00013698,2]
[361573614,1747620643869,-400.0,0.00013698,2]
[361573615,1747620643879,-177.62032914,0.00013698,2]
[361573616,1747620643891,-222.37967086,0.00013698,2]
[361573617,1747620643901,-400.0,0.00013698,2]
[361573618,1747620643911,-689.32,0.00013698,2]
[361573619,1747620643921,-400.0,0.00013698,2]
[361573620,1747620643931,-403.88352432,0.00013698,2]
[361573621,1747620643940,-400.0,0.00013698,2]
[361573622,1747620643950,-400.0,0.00013698,2]
[361573623,1747620643960,-622.3,0.00013698,2]
[361573624,1747620643970,-869.94,0.00013698,2]
[361573625,1747620643979,-398.28994506,0.00013698,2]
[361573626,1747620643988,-401.97023752,0.00013698,2]
[361573627,1747620643998,-400.0,0.00013698,2]
[361573628,1747620644007,-400.0,0.00013698,2]
[361573629,1747620644017,-575.33,0.00013698,2]
[361573630,1747620644028,-400.0,0.00013698,2]
[361573631,1747620644037,-924.77,0.00013698,2]
[361573632,1747620644046,-400.0,0.00013698,2]
[361573633,1747620644055,-400.0,0.00013698,2]
[361573634,1747620644065,-400.0,0.00013698,2]
[361573635,1747620644074,-1119.07,0.00013698,2]
[361573636,1747620644083,-400.0,0.00013698,2]
[361573637,1747620644093,-472.51,0.00013698,2]
[361573638,1747620644102,-403.83632865,0.00013698,2]
[361573639,1747620644111,-388.91740413,0.00013698,2]
[361573640,1747620644120,-402.33431517,0.00013698,2]
[361573641,1747620644130,-400.0,0.00013698,2]
[361573642,1747620644139,-400.0,0.00013698,2]
[361573643,1747620644149,-400.0,0.00013698,2]
[361573644,1747620644159,-407.30099033,0.00013698,2]
[361573645,1747620644168,-409.21389132,0.00013698,2]
[361573646,1747620644178,-403.4587018,0.00013698,2]
[361573647,1747620644187,-708.89,0.00013698,2]
[361573648,1747620644197,-400.0,0.00013698,2]
[361573649,1747620644209,-400.30983084,0.00013698,2]
[361573650,1747620644219,-400.0,0.00013698,2]
[361573651,1747620644229,-400.0,0.00013698,2]
[361573652,1747620644238,-400.0,0.00013698,2]
[361573653,1747620644249,-400.0,0.00013698,2]
[361573654,1747620644258,-714.72,0.00013698,2]
[361573655,1747620644268,-400.0,0.00013698,2]
[361573656,1747620644279,-400.57331112,0.00013698,2]
[361573657,1747620644289,-400.0,0.00013698,2]
[361573658,1747620644299,-400.0,0.00013698,2]
[361573659,1747620644308,-400.0,0.00013698,2]
[361573660,1747620644318,-400.0,0.00013698,2]
[361573661,1747620644327,-400.0,0.00013698,2]
[361573662,1747620644337,-400.0,0.00013698,2]
[361573663,1747620644346,-406.66917667,0.00013698,2]
[361573664,1747620644355,-400.0,0.00013698,2]
[361573665,1747620644366,-400.0,0.00013698,2]
[361573666,1747620644375,-400.0,0.00013698,2]
[361573667,1747620644385,-400.0,0.00013698,2]
[361573668,1747620644394,-407.31519652,0.00013698,2]
[361573669,1747620644404,-400.0,0.00013698,2]
[361573670,1747620644414,-888.49,0.00013698,2]
[361573671,1747620644423,-400.0,0.00013698,2]
[361573672,1747620644433,-500.0,0.00013698,2]
[361573673,1747620644443,-503.09898145,0.00013698,2]
[361573674,1747620644452,-400.0,0.00013698,2]
[361573675,1747620644461,-400.0,0.00013698,2]
[361573676,1747620644471,-400.0,0.00013698,2]
[361573677,1747620644481,-401.07433648,0.00013698,2]
[361573678,1747620644491,-400.0,0.00013698,2]
[361573679,1747620644500,-404.46098506,0.00013698,2]
[361573680,1747620644510,-265.72993237,0.00013698,2]
[361573681,1747620644519,-467.87003075,0.00013698,2]
[361573682,1747620644530,-400.0,0.00013698,2]
[361573683,1747620644540,-400.0,0.00013698,2]
[361573684,1747620644801,-400.0,0.00013698,2]
[361573685,1747620644812,-1203.44,0.00013698,2]
[361573686,1747620644821,-645.63,0.00013698,2]
[361573687,1747620644831,-409.68492825,0.00013698,2]
[361573688,1747620644842,-400.0,0.00013698,2]
[361573689,1747620644851,-400.0,0.00013698,2]
[361573690,1747620644861,-400.0,0.00013698,2]
[361573691,1747620644870,-1241.14,0.00013698,2]
[361573692,1747620644880,-400.0,0.00013698,2]
[361573693,1747620644889,-400.0,0.00013698,2]
[361573694,1747620644899,-1037.15,0.00013698,2]
[361573695,1747620644908,-400.0,0.00013698,2]
[361573696,1747620644917,-546.42649223,0.00013698,2]
[361573697,1747620644927,-779.99,0.00013698,2]
[361573698,1747620644937,-404.60824654,0.00013698,2]
[361573699,1747620644946,-400.0,0.00013698,2]
[361573700,1747620644955,-442.82,0.00013698,2]
[361573701,1747620644965,-400.0,0.00013698,2]
[361573702,1747620644974,-400.0,0.00013698,2]
[361573703,1747620644984,-400.0,0.00013698,2]
[361573704,1747620644993,-400.0,0.00013698,2]
[361573705,1747620645002,-400.0,0.00013698,2]
[361573706,1747620645011,-400.0,0.00013698,2]
[361573707,1747620645020,-523.5,0.00013698,2]
[361573708,1747620645030,-403.02814561,0.00013698,2]
[361573709,1747620645039,-416.28,0.00013698,2]
[361573710,1747620645048,-722.8,0.00013698,2]
[361573711,1747620645057,-512.92470732,0.00013698,2]
[361573712,1747620645066,-400.0,0.00013698,2]
[361573713,1747620645075,-393.0,0.00013698,2]
[361573714,1747620645084,-400.0,0.00013698,2]
[361573715,1747620645093,-525.79,0.00013698,2]
[361573716,1747620645102,-402.39684861,0.00013698,2]
[361573717,1747620645112,-400.0,0.00013698,2]
[361573718,1747620645121,-400.0,0.00013698,2]
[361573719,1747620645130,-400.0,0.00013698,2]
[361573720,1747620645139,-400.0,0.00013698,2]
[361573721,1747620645148,-359.97134497,0.00013698,2]
[361573722,1747620645158,-400.0,0.00013698,2]
[361573723,1747620645167,-832.98,0.00013698,2]
[361573724,1747620645176,-1013.53,0.00013698,2]
[361573725,1747620645186,-403.64054502,0.00013698,2]
[361573726,1747620645195,-670.23,0.00013698,2]
[361573727,1747620645207,-402.15318513,0.00013698,2]
[361573728,1747620645216,-400.0,0.00013698,2]
[361573729,1747620645225,-702.83,0.00013698,2]
[361573730,1747620645234,-400.0,0.00013698,2]
[361573731,1747620645244,-400.0,0.00013698,2]
[361573732,1747620645253,-400.0,0.00013698,2]
[361573733,1747620645263,-400.0,0.00013698,2]
[361573734,1747620645272,-400.0,0.00013698,2]
[361573735,1747620645283,-400.0,0.00013698,2]
[361573736,1747620645292,-400.0,0.00013698,2]
[361573737,1747620645301,-400.0,0.00013698,2]
[361573738,1747620645311,-400.0,0.00013698,2]
[361573739,1747620645320,-400.0,0.00013698,2]
[361573741,1747620645329,-1257.96,0.00013698,2]
[361573742,1747620645338,-400.0,0.00013698,2]
[361573743,1747620645347,-400.0,0.00013698,2]
[361573744,1747620645356,-400.0,0.00013698,2]
[361573745,1747620645366,-355.35166662,0.00013698,2]
[361573746,1747620645375,-801.8,0.00013698,2]
[361573747,1747620645384,-403.00669421,0.00013698,2]
[361573748,1747620645393,-518.57,0.00013698,2]
[361573749,1747620645403,-400.0,0.00013698,2]
[361573750,1747620645412,-400.0,0.00013698,2]
[361573751,1747620645421,-406.93393536,0.00013698,2]
[361573752,1747620645431,-400.0,0.00013698,2]
[361573754,1747620645440,-400.0,0.00013698,2]
[361573755,1747620645449,-432.17,0.00013698,2]
[361573756,1747620645459,-400.0,0.00013698,2]
[361573757,1747620645468,-400.0,0.00013698,2]
[361573758,1747620645477,-531.59,0.00013698,2]
[361573759,1747620645487,-568.49,0.00013698,2]
[361573760,1747620645496,-489.47,0.00013698,2]
[361573761,1747620645506,-406.61409955,0.00013698,2]
[361573762,1747620645515,-400.0,0.00013698,2]
[361573763,1747620645525,-400.0,0.00013698,2]
[361573764,1747620645535,-465.36767359,0.00013698,2]
[361573765,1747620645546,-400.0,0.00013698,2]
[361573766,1747620645555,-425.61560095,0.00013698,2]
[361573767,1747620645564,-400.0,0.00013698,2]
[361573768,1747620645574,-375.0,0.00013698,2]
[361573769,1747620645583,-404.80087103,0.00013698,2]
[361573770,1747620645593,-1293.94,0.00013698,2]
[361573771,1747620645602,-400.0,0.00013698,2]
[361573772,1747620645612,-890.37,0.00013698,2]
[361573773,1747620645621,-400.0,0.00013698,2]
[361573774,1747620645631,-407.56858252,0.00013698,2]
[361573775,1747620645641,-678.26,0.00013698,2]
[361573776,1747620645650,-400.0,0.00013698,2]
[361573777,1747620645660,-206.17575349,0.00013698,2]
[361573778,1747620645669,-400.0,0.00013698,2]
[361573779,1747620645679,-405.83359317,0.00013698,2]
[361573780,1747620645688,-400.0,0.00013698,2]
[361573781,1747620645698,-791.31,0.00013698,2]
[361573782,1747620645707,-400.0,0.00013698,2]
[361573783,1747620645717,-400.0,0.00013698,2]
[361573784,1747620645727,-400.0,0.00013698,2]
[361573785,1747620645736,-400.0,0.00013698,2]
[361573786,1747620645745,-400.0,0.00013698,2]
[361573787,1747620645754,-1095.07,0.00013698,2]
[361573788,1747620645764,-500.0,0.00013698,2]
[361573789,1747620645774,-400.0,0.00013698,2]
[361573790,1747620645783,-500.0,0.00013698,2]
[361573791,1747620645794,-1088.54,0.00013698,2]
[361573792,1747620645803,-765.58,0.00013698,2]
[361573793,1747620645814,-400.0,0.00013698,2]
[361573794,1747620645823,-400.0,0.00013698,2]
[361573795,1747620645834,-400.0,0.00013698,2]
[361573796,1747620645850,-400.0,0.00013698,2]
[361573797,1747620645860,-807.25,0.00013698,2]
[361573798,1747620645871,-400.0,0.00013698,2]
[361573799,1747620645881,-400.0,0.00013698,2]
[361573800,1747620645891,-1005.61,0.00013698,2]
[361573801,1747620645901,-400.0,0.00013698,2]
[361573802,1747620645910,-1735.14,0.00013698,2]
[361573803,1747620645919,-400.0,0.00013698,2]
[361573804,1747620645930,-870.21,0.00013698,2]
[361573805,1747620645939,-778.23,0.00013698,2]
[361573806,1747620645949,-400.0,0.00013698,2]
[361573807,1747620645959,-638.62,0.00013698,2]
[361573808,1747620645968,-602.43,0.00013698,2]
[361573809,1747620645977,-400.0,0.00013698,2]
[361573810,1747620645987,-400.0,0.00013698,2]
[361573811,1747620645997,-500.0,0.00013698,2]
[361573812,1747620646006,-500.0,0.00013698,2]
[361573813,1747620646016,-505.31,0.00013698,2]
[361573814,1747620646026,-400.0,0.00013698,2]
[361573815,1747620646036,-1473.63,0.00013698,2]
[361573816,1747620646045,-400.0,0.00013698,2]
[361573817,1747620646055,-1146.33,0.00013698,2]
[361573818,1747620646065,-429.92,0.00013698,2]
[361573819,1747620646074,-1027.4,0.00013698,2]
[361573820,1747620646083,-1090.08,0.00013698,2]
[361573821,1747620646093,-960.86,0.00013698,2]
[361573822,1747620646102,-400.0,0.00013698,2]
[361573823,1747620646112,-446.11,0.00013698,2]
[361573824,1747620646121,-492.31,0.00013698,2]
[361573825,1747620646131,-400.0,0.00013698,2]
[361573826,1747620646140,-1000.0,0.00013698,2]
[361573827,1747620646150,-400.0,0.00013698,2]
[361573828,1747620646160,-1288.95,0.00013698,2]
[361573829,1747620646169,-1288.95,0.00013698,2]
[361573830,1747620646179,-400.0,0.00013698,2]
[361573831,1747620646188,-400.0,0.00013698,2]
[361573832,1747620646198,-400.0,0.00013698,2]
[361573833,1747620646209,-400.0,0.00013698,2]
[361573834,1747620646218,-1235.45,0.00013698,2]
[361573835,1747620646228,-400.0,0.00013698,2]
[361573836,1747620646238,-400.0,0.00013698,2]
[361573837,1747620646248,-826.24,0.00013698,2]
[361573838,1747620646258,-401.27469673,0.00013698,2]
[361573839,1747620646267,-400.0,0.00013698,2]
[361573840,1747620646278,-496.96,0.00013698,2]
[361573841,1747620646287,-400.0,0.00013698,2]
[361573842,1747620646297,-1415.44,0.00013698,2]
[361573843,1747620646306,-400.0,0.00013698,2]
[361573844,1747620646315,-1171.75,0.00013698,2]
[361573845,1747620646325,-1873.26,0.00013698,2]
[361573846,1747620646335,-713.88,0.00013698,2]
[361573847,1747620646345,-882.25,0.00013698,2]
[361573848,1747620646354,-466.78,0.00013698,2]
[361573849,1747620646363,-400.0,0.00013698,2]
[361573850,1747620646373,-464.6,0.00013698,2]
[361573851,1747620646382,-554.89,0.00013698,2]
[361573852,1747620646391,-250.76352385,0.00013698,2]
[361573853,1747620646400,-400.0,0.00013698,2]
[361573854,1747620646409,-548.02,0.00013698,2]
[361573855,1747620646419,-527.52864189,0.00013698,2]
[361573856,1747620646428,-400.0,0.00013698,2]
[361573857,1747620646437,-400.0,0.00013698,2]
[361573858,1747620646446,-1758.69,0.00013698,2]
[361573859,1747620646455,-400.0,0.00013698,2]
[361573860,1747620646465,-1350.27,0.00013698,2]
[361573861,1747620646474,-400.0,0.00013698,2]
[361573862,1747620646483,-881.14,0.00013698,2]
[361573863,1747620646492,-631.78,0.00013698,2]
[361573864,1747620646501,-400.0,0.00013698,2]
[361573865,1747620646511,-400.0,0.00013698,2]
[361573866,1747620646520,-400.0,0.00013698,2]
[361573867,1747620646529,-343.34141342,0.00013698,2]
[361573868,1747620646539,-400.0,0.00013698,2]
[361573869,1747620646548,-400.0,0.00013698,2]
[361573870,1747620646557,-655.05,0.00013698,2]
[361573871,1747620646567,-463.84,0.00013698,2]
[361573872,1747620646576,-400.0,0.00013698,2]
[361573873,1747620646586,-609.17,0.00013698,2]
[361573874,1747620646595,-944.2,0.00013698,2]
[361573875,1747620646605,-400.0,0.00013698,2]
[361573876,1747620646614,-400.0,0.00013698,2]
[361573877,1747620646624,-402.62434834,0.00013698,2]
[361573878,1747620646634,-400.0,0.00013698,2]
[361573879,1747620646643,-400.0,0.00013698,2]